fUST/lending_fUST_20250220
["ID","MTS","AMOUNT","RATE_DAILY","PERIOD"]
[353720593,1739997062130,-447.0,0.00017724,2]
[353720595,1739997062139,-447.0,0.00017724,2]
[353720597,1739997062149,-447.0,0.00017724,2]
[353720599,1739997062160,-447.0,0.00017724,2]
[353720601,1739997062169,-447.0,0.00017724,2]
[353720603,1739997062178,-447.0,0.00017724,2]
[353720605,1739997062187,-447.0,0.00017724,2]
[353720607,1739997062196,-447.0,0.00017724,2]
[353720609,1739997062206,-447.0,0.00017724,2]
[353720611,1739997062215,-447.0,0.00017724,2]
[353720613,1739997062225,-447.0,0.00017724,2]
[353720634,1739997062412,-447.0,0.00017724,2]
[353720636,1739997062426,-447.0,0.00017724,2]
[353720638,1739997062436,-447.0,0.00017724,2]
[353720640,1739997062446,-625.0,0.00017725,2]
[353720642,1739997062455,-625.0,0.00017725,2]
[353720644,1739997062465,-625.0,0.00017725,2]
[353720646,1739997062475,-625.0,0.00017725,2]
[353720648,1739997062484,-625.0,0.00017725,2]
[353720650,1739997062496,-625.0,0.00017725,2]
[353720653,1739997062508,-625.0,0.00017725,2]
[353720655,1739997062519,-625.0,0.00017725,2]
[353720657,1739997062529,-625.0,0.00017725,2]
[353720659,1739997062539,-625.0,0.00017725,2]
[353720661,1739997062548,-625.0,0.00017725,2]
[353720662,1739997062559,-625.0,0.00017725,2]
[353720664,1739997062568,-625.0,0.00017725,2]
[353720666,1739997062580,-625.0,0.00017725,2]
[353720668,1739997062590,-447.0,0.00017726,2]
[353720670,1739997062599,-447.0,0.00017726,2]
[353720672,1739997062609,-447.0,0.00017726,2]
[353720674,1739997062619,-447.0,0.00017726,2]
[353720677,1739997062629,-447.0,0.00017726,2]
[353720679,1739997062639,-447.0,0.00017726,2]
[353720680,1739997062648,-447.0,0.00017726,2]
[353720682,1739997062657,-447.0,0.00017726,2]
[353720684,1739997062669,-447.0,0.00017726,2]
[353720686,1739997062679,-447.0,0.00017726,2]
[353720688,1739997062688,-447.0,0.00017726,2]
[353720690,1739997062697,-447.0,0.00017726,2]
[353720692,1739997062707,-447.0,0.00017726,2]
[353720694,1739997062716,-625.0,0.00017726,2]
[353720696,1739997062725,-625.0,0.00017726,2]
[353720698,1739997062734,-625.0,0.00017726,2]
[353720700,1739997062744,-625.0,0.00017726,2]
[353720702,1739997062753,-625.0,0.00017726,2]
[353720704,1739997062762,-625.0,0.00017726,2]
[353720706,1739997062771,-625.0,0.00017726,2]
[353720708,1739997062779,-625.0,0.00017726,2]
[353720710,1739997062790,-625.0,0.00017726,2]
[353720712,1739997062800,-625.0,0.00017726,2]
[353720713,1739997062810,-625.0,0.00017726,2]
[353720716,1739997062819,-625.0,0.00017726,2]
[353720717,1739997062829,-625.0,0.00017726,2]
[353720719,1739997062839,-1000.0,0.0001775,2]
[353720722,1739997062850,-828.75654214,0.00017762,2]
[353720723,1739997062859,-13275.53870192,0.00017765,2]
[353720726,1739997062869,-1000.0,0.00017767,2]
[353720727,1739997062878,-1000.0,0.00017796,2]
[353720729,1739997062887,-6234.85345764,0.000178,2]
[353720732,1739997062898,-613.73740092,0.00017801,2]
[353720734,1739997062908,-1000.0,0.00017802,2]
[353720736,1739997062919,-1000.0,0.00017803,2]
[353720738,1739997062927,-19236.08525494,0.0001782,2]
[353720740,1739997062936,-600.0,0.0001782,2]
[353720742,1739997062946,-1000.0,0.00017824,2]
[353720744,1739997062955,-1000.0,0.00017827,2]
[353720745,1739997062964,-1000.0,0.0001783,2]
[353720747,1739997062973,-314.0,0.0001784,2]
[353720749,1739997062982,-1000.0,0.00017854,2]
[353720751,1739997062991,-1000.0,0.00017877,2]
[353720753,1739997063001,-43045.68016097,0.000179,2]
[353720755,1739997063009,-167.17528665,0.000179,2]
[353720757,1739997063019,-613.73740092,0.00017901,2]
[353720759,1739997063028,-990.0,0.00017968,2]
[353720761,1739997063037,-500.0,0.00017973,2]
[353720763,1739997063047,-274.89863459,0.00017973,2]
[353720765,1739997063056,-182544.8334806,0.0001799,7]
[353720767,1739997063067,-5000.0,0.00017992,2]
[353720769,1739997063077,-5000.0,0.00017992,2]
[353720771,1739997063086,-5000.0,0.00017992,2]
[353720773,1739997063097,-5000.0,0.00017992,2]
[353720775,1739997063106,-5000.0,0.00017992,2]
[353720777,1739997063116,-151.0,0.00017999,2]
[353720779,1739997063126,-427.85438938,0.00017999,2]
[353720781,1739997063135,-160.0,0.00017999,2]
[353720783,1739997063144,-136437.96557845,0.00018,5]
[353720785,1739997063154,-29096.96815771,0.00018,5]
[353720787,1739997063166,-542712.96224744,0.00018,15]
[353720789,1739997063175,-909.0,0.00018,14]
[353720791,1739997063185,-124001.2218164,0.00018,15]
[353720793,1739997063194,-191170.56468136,0.00018,15]
[353720795,1739997063204,-1647085.11863044,0.00018,15]
[353720814,1739997063380,-500.0,0.00013698,2]
[353720816,1739997063389,-500.0,0.00013698,2]
[353720818,1739997063399,-500.0,0.0001378,2]
[353720820,1739997063408,-500.0,0.00013863,2]
[353720822,1739997063419,-500.0,0.00013945,2]
[353720824,1739997063429,-500.0,0.00014027,2]
[353720826,1739997063439,-500.0,0.00014602,2]
[353720828,1739997063449,-500.0,0.00014684,2]
[353720830,1739997063458,-500.0,0.00014767,2]
[353720832,1739997063468,-500.0,0.00014849,2]
[353720833,1739997063477,-500.0,0.00014931,2]
[353720835,1739997063486,-932.67,0.00015013,2]
[353720837,1739997063499,-500.0,0.00015013,2]
[353720839,1739997063508,-932.67,0.00015095,2]
[353720841,1739997063519,-932.67,0.00015178,2]
[353720843,1739997063528,-869.49262231,0.0001526,2]
[353720846,1739997063541,-63.17737769,0.0001526,2]
[353720848,1739997063550,-932.67,0.00015342,2]
[353720849,1739997063560,-932.67,0.00015424,2]
[353720851,1739997063569,-1680.42521054,0.00015895,2]
[353720853,1739997063581,-224608.80773734,0.00018,15]
[353720855,1739997063593,-2757.86399761,0.00018,15]
[353720859,1739997063615,-500.0,0.00015095,2]
[353720861,1739997063625,-0.33295,0.00015506,2]
[353720863,1739997063637,-932.33705,0.00015506,2]
[353720865,1739997063647,-10731.92023591,0.00018,15]
[353720867,1739997063659,-285.41699059,0.00018,15]
[353720869,1739997063677,-1044.0,0.00018,15]
[353720880,1739997063840,-523.17268679,0.00013698,2]
[353720883,1739997063851,-531.67,0.00013698,2]
[353720885,1739997063861,-500.0,0.00013698,2]
[353720887,1739997063872,-607.32704928,0.00013698,2]
[353720889,1739997063882,-500.0,0.0001378,2]
[353720891,1739997063892,-531.67,0.0001378,2]
[353720893,1739997063901,-531.67,0.00013863,2]
[353720895,1739997063914,-500.0,0.00013863,2]
[353720897,1739997063923,-152.0,0.00013916,2]
[353720899,1739997063933,-506.06009748,0.00013945,2]
[353720900,1739997063943,-531.67,0.00013945,2]
[353720902,1739997063953,-531.67,0.00014027,2]
[353720904,1739997063963,-500.0,0.00015178,2]
[353720906,1739997063973,-500.0,0.0001526,2]
[353720908,1739997063983,-500.0,0.00015342,2]
[353720910,1739997063994,-363.40429969,0.00015424,2]
[353720913,1739997064003,-932.8534678,0.00015589,2]
[353720914,1739997064014,-22554.87689519,0.00018,15]
[353720917,1739997064027,-39810.9,0.00018,15]
[353720919,1739997064040,-1726.47454843,0.00018,15]
[353721208,1739997105917,172.937495,9.041e-05,2]
[353721228,1739998210519,164.29062,9.041e-05,2]
[353721302,1739998232046,-24900.0,0.00011517,2]
[353721304,1739998232056,-250.0,0.00011968,2]
[353721306,1739998232065,-500.93511211,0.00012,2]
[353721308,1739998232074,-306.58259879,0.000122,2]
[353721309,1739998232084,-500.0,0.000125,2]
[353721312,1739998232093,-167.17528665,0.000129,2]
[353721313,1739998232103,-500.0,0.00012973,2]
[353721315,1739998232113,-500.49020111,0.00012973,2]
[353721318,1739998232123,-500.0,0.00012973,2]
[353721319,1739998232133,-500.0,0.00012973,2]
[353721322,1739998232142,-266.0864414,0.00012973,2]
[353721323,1739998232151,-455.1285346,0.00012973,2]
[353721326,1739998232160,-200.04975345,0.00012973,2]
[353721328,1739998232169,-500.0,0.00012973,2]
[353721329,1739998232179,-151.04206941,0.00012973,2]
[353721331,1739998232188,-162.04610021,0.00012973,2]
[353721334,1739998232198,-500.0,0.00012973,2]
[353721336,1739998232208,-616.63668113,0.00012999,2]
[353721338,1739998232220,-2143.32605164,0.00013,3]
[353721340,1739998232231,-10998.28343765,0.00013,3]
[353721346,1739998232282,-303.81957187,0.00011989,2]
[353721348,1739998232292,-500.0,0.00011989,2]
[353721350,1739998232301,-32129.56964452,0.00013,3]
[353721901,1739998237830,-500.0,0.00011989,2]
[353721903,1739998237840,-500.0,0.00011989,2]
[353721905,1739998237850,-500.0,0.00011989,2]
[353721907,1739998237860,-500.0,0.00011989,2]
[353721909,1739998237875,-500.0,0.00011989,2]
[353721911,1739998237885,-500.0,0.00011989,2]
[353721913,1739998237895,-500.0,0.00011989,2]
[353721915,1739998237904,-500.0,0.00011989,2]
[353721917,1739998237914,-500.0,0.00011989,2]
[353721919,1739998237923,-500.0,0.00011989,2]
[353721921,1739998237934,-500.0,0.00011989,2]
[353721923,1739998237944,-115.68260334,0.00011989,2]
[353721926,1739998237955,-384.31739666,0.00011989,2]
[353721928,1739998237964,-500.0,0.00011989,2]
[353721930,1739998237973,-500.0,0.00011989,2]
[353721932,1739998237983,-500.0,0.00011989,2]
[353721934,1739998237992,-500.0,0.00011989,2]
[353721936,1739998238001,-500.0,0.00011989,2]
[353721938,1739998238010,-500.0,0.00011989,2]
[353721940,1739998238020,-500.0,0.00011989,2]
[353721942,1739998238029,-500.0,0.00011989,2]
[353721944,1739998238040,-500.0,0.00011989,2]
[353721946,1739998238049,-500.0,0.00011989,2]
[353721948,1739998238058,-500.0,0.00011989,2]
[353721950,1739998238067,-500.0,0.00011989,2]
[353721952,1739998238077,-500.0,0.00011989,2]
[353721954,1739998238085,-500.0,0.00011989,2]
[353721956,1739998238094,-500.0,0.00011989,2]
[353721957,1739998238103,-500.0,0.00011989,2]
[353721959,1739998238114,-138.97393169,0.00011989,2]
[353721962,1739998238130,-361.02606831,0.00011989,2]
[353721964,1739998238139,-138.97393169,0.00011989,2]
[353721966,1739998238150,-361.02606831,0.00011989,2]
[353721968,1739998238159,-62.765601,0.00011989,2]
[353721971,1739998238170,-437.234399,0.00011989,2]
[353721973,1739998238180,-500.0,0.00011989,2]
[353721975,1739998238189,-500.0,0.00011989,2]
[353721977,1739998238198,-500.0,0.00011989,2]
[353721978,1739998238208,-29.20834703,0.00011989,2]
[353721979,1739998238219,-470.79165297,0.00011989,2]
[353721980,1739998238227,-95.51267033,0.00011989,2]
[353721981,1739998238238,-404.48732967,0.00011989,2]
[353721982,1739998238247,-500.0,0.00011989,2]
[353721983,1739998238256,-500.0,0.00011989,2]
[353721984,1739998238275,-500.0,0.00011989,2]
[353721985,1739998238285,-590.21240456,0.00011989,2]
[353721986,1739998238294,-500.0,0.00011989,2]
[353721987,1739998238303,-500.0,0.00011989,2]
[353721988,1739998238313,-500.0,0.00011989,2]
[353721989,1739998238322,-500.0,0.00011989,2]
[353721990,1739998238331,-500.0,0.00011989,2]
[353721991,1739998238347,-500.0,0.00011989,2]
[353721992,1739998238358,-500.0,0.00011989,2]
[353722008,1739998238512,-500.0,0.00011989,2]
[353722010,1739998238522,-500.0,0.00011989,2]
[353722013,1739998238532,-500.0,0.00011989,2]
[353722015,1739998238541,-500.0,0.00011989,2]
[353722017,1739998238550,-322.87282791,0.00011989,2]
[353722019,1739998238560,-500.0,0.00011989,2]
[353722020,1739998238569,-500.0,0.00011989,2]
[353722023,1739998238578,-500.0,0.00011989,2]
[353722024,1739998238589,-500.0,0.00011989,2]
[353722026,1739998238598,-500.0,0.00011989,2]
[353722029,1739998238608,-500.0,0.00011989,2]
[353722031,1739998238618,-500.0,0.00011989,2]
[353722032,1739998238627,-117.91137462,0.00013,3]
[353722035,1739998238639,-155049.16336383,0.00013,3]
[353722037,1739998238648,-151.0,0.00013,2]
[353722039,1739998238657,-1000.0,0.00013048,2]
[353722041,1739998238667,-151.0,0.000131,2]
[353722043,1739998238676,-151.0,0.000132,2]
[353722045,1739998238686,-151.0,0.000133,2]
[353722047,1739998238695,-151.0,0.000133,2]
[353722049,1739998238704,-151.0,0.000133,2]
[353722051,1739998238713,-151.0,0.000133,2]
[353722053,1739998238722,-151.0,0.000134,2]
[353722055,1739998238732,-151.0,0.000134,2]
[353722057,1739998238741,-158.28570487,0.00013424,5]
[353722059,1739998238750,-151.0,0.000135,2]
[353722061,1739998238759,-151.0,0.000135,2]
[353722063,1739998238768,-1000.0,0.00013521,2]
[353722065,1739998238777,-513.01338429,0.00013521,2]
[353722067,1739998238786,-644.4288868,0.00013521,2]
[353722069,1739998238795,-500.61459917,0.00013521,2]
[353722071,1739998238804,-152.0,0.00013522,2]
[353722073,1739998238814,-356.12187364,0.00013598,2]
[353722075,1739998238824,-151.0,0.000136,2]
[353722077,1739998238833,-151.0,0.000136,2]
[353722079,1739998238843,-151.0,0.000136,2]
[353722081,1739998238852,-500.0,0.00013698,2]
[353722083,1739998238862,-500.0,0.00013698,2]
[353722085,1739998238873,-500.0,0.00013698,2]
[353722087,1739998238883,-500.0,0.00013698,2]
[353722089,1739998238893,-482.02812297,0.00013698,2]
[353722091,1739998238902,-500.0,0.00013698,2]
[353722093,1739998238912,-500.0,0.00013698,2]
[353722095,1739998238923,-500.0,0.00013698,2]
[353722096,1739998238934,-500.0,0.00013698,2]
[353722098,1739998238944,-500.0,0.00013698,2]
[353722100,1739998238956,-500.0,0.00013698,2]
[353722102,1739998238965,-500.0,0.00013698,2]
[353722104,1739998238975,-250.04220008,0.00013698,2]
[353722106,1739998238985,-500.88439611,0.00013698,2]
[353722108,1739998238994,-501.55291729,0.00013698,2]
[353722111,1739998239004,-500.0,0.00013698,2]
[353722113,1739998239013,-500.0,0.00013698,2]
[353722114,1739998239023,-500.0,0.00013698,2]
[353722117,1739998239032,-500.0,0.00013698,2]
[353722118,1739998239042,-500.0,0.00013698,2]
[353722121,1739998239051,-500.0,0.00013698,2]
[353722123,1739998239060,-500.0,0.00013698,2]
[353722124,1739998239070,-500.0,0.00013698,2]
[353722127,1739998239083,-500.0,0.00013698,2]
[353722129,1739998239092,-500.0,0.00013698,2]
[353722131,1739998239101,-500.0,0.00013698,2]
[353722133,1739998239111,-500.0,0.00013698,2]
[353722135,1739998239120,-536.06326696,0.00013698,2]
[353722137,1739998239130,-500.0,0.00013698,2]
[353722139,1739998239139,-500.0,0.00013698,2]
[353722141,1739998239148,-500.0,0.00013698,2]
[353722143,1739998239160,-501.59986121,0.00013698,2]
[353722145,1739998239169,-500.0,0.00013698,2]
[353722147,1739998239180,-500.0,0.00013698,2]
[353722149,1739998239190,-500.0,0.00013698,2]
[353722151,1739998239199,-500.0,0.00013698,2]
[353722153,1739998239209,-500.0,0.00013698,2]
[353722155,1739998239218,-500.0,0.00013698,2]
[353722157,1739998239227,-500.0,0.00013698,2]
[353722159,1739998239237,-500.0,0.00013698,2]
[353722161,1739998239246,-500.0,0.00013698,2]
[353722163,1739998239255,-500.0,0.00013698,2]
[353722165,1739998239265,-500.0,0.00013698,2]
[353722167,1739998239275,-500.0,0.00013698,2]
[353722169,1739998239284,-500.0,0.00013698,2]
[353722171,1739998239294,-500.0,0.00013698,2]
[353722173,1739998239303,-500.0,0.00013698,2]
[353722175,1739998239312,-500.0,0.00013698,2]
[353722177,1739998239322,-500.0,0.00013698,2]
[353722179,1739998239332,-500.0,0.00013698,2]
[353722181,1739998239342,-500.0,0.00013698,2]
[353722183,1739998239351,-238.94641089,0.00013698,2]
[353722185,1739998239361,-500.0,0.00013698,5]
[353722187,1739998239370,-500.0,0.00013698,2]
[353722190,1739998239380,-500.0,0.00013698,2]
[353722193,1739998239390,-500.0,0.00013698,2]
[353722196,1739998239399,-500.0,0.00013698,2]
[353722199,1739998239408,-468.69413174,0.00013698,2]
[353722202,1739998239418,-500.0,0.00013698,2]
[353722206,1739998239430,-500.0,0.00013698,2]
[353722208,1739998239439,-500.0,0.00013698,2]
[353722211,1739998239449,-500.0,0.00013698,2]
[353722215,1739998239458,-500.0,0.00013698,2]
[353722218,1739998239470,-500.0,0.00013698,2]
[353722221,1739998239479,-500.0,0.00013698,2]
[353722223,1739998239488,-500.0,0.00013698,2]
[353722227,1739998239498,-500.0,0.00013698,2]
[353722229,1739998239507,-500.0,0.00013698,2]
[353722231,1739998239517,-500.0,0.00013698,2]
[353722233,1739998239527,-500.0,0.00013698,2]
[353722235,1739998239536,-500.0,0.00013698,2]
[353722237,1739998239546,-500.0,0.00013698,2]
[353722239,1739998239555,-500.0,0.00013698,2]
[353722241,1739998239565,-500.0,0.00013698,2]
[353722243,1739998239575,-500.0,0.00013698,2]
[353722245,1739998239584,-500.0,0.00013698,2]
[353722247,1739998239595,-491.03389373,0.00013698,2]
[353722249,1739998239604,-487.98308315,0.00013698,2]
[353722251,1739998239614,-502.56217494,0.00013698,2]
[353722252,1739998239623,-500.0,0.00013698,2]
[353722255,1739998239633,-500.0,0.00013698,2]
[353722257,1739998239642,-500.70912827,0.00013698,2]
[353722259,1739998239652,-500.0,0.00013698,2]
[353722263,1739998239662,-502.53589571,0.00013698,2]
[353722266,1739998239672,-500.0,0.00013698,2]
[353722269,1739998239683,-500.0,0.00013698,2]
[353722271,1739998239693,-500.0,0.00013698,2]
[353722273,1739998239702,-500.0,0.00013698,2]
[353722275,1739998239712,-500.0,0.00013698,2]
[353722277,1739998239722,-500.0,0.00013698,2]
[353722279,1739998239731,-500.0,0.00013698,2]
[353722281,1739998239740,-500.0,0.00013698,2]
[353722283,1739998239750,-500.0,0.00013698,2]
[353722285,1739998239759,-500.87568404,0.00013698,2]
[353722287,1739998239769,-500.0,0.00013698,2]
[353722289,1739998239779,-607.80798565,0.00013698,2]
[353722291,1739998239788,-502.00881287,0.00013698,2]
[353722293,1739998239797,-500.0,0.00013698,2]
[353722295,1739998239806,-500.0,0.00013698,2]
[353722297,1739998239816,-500.0,0.00013698,2]
[353722299,1739998239826,-500.0,0.00013698,2]
[353722301,1739998239836,-500.0,0.00013698,2]
[353722303,1739998239846,-204.82196981,0.00013698,2]
[353722305,1739998239857,-500.0,0.00013698,2]
[353722307,1739998239868,-500.0,0.00013698,2]
[353722309,1739998239881,-500.0,0.00013698,2]
[353722311,1739998239891,-500.0,0.00013698,2]
[353722313,1739998239900,-500.0,0.00013698,2]
[353722315,1739998239910,-500.0,0.00013698,2]
[353722317,1739998239921,-500.0,0.00013698,2]
[353722319,1739998239930,-500.0,0.00013698,2]
[353722321,1739998239940,-500.0,0.00013698,2]
[353722323,1739998239952,-503.34952851,0.00013698,2]
[353722325,1739998239961,-500.0,0.00013698,2]
[353722327,1739998239970,-509.18,0.00013698,2]
[353722329,1739998239980,-500.0,0.00013698,2]
[353722331,1739998239990,-500.0,0.00013698,2]
[353722333,1739998240000,-500.0,0.00013698,2]
[353722335,1739998240010,-500.77472186,0.00013698,2]
[353722338,1739998240020,-500.0,0.00013698,2]
[353722339,1739998240029,-500.0,0.00013698,2]
[353722342,1739998240040,-305.80653779,0.00013698,2]
[353722344,1739998240050,-252.73549147,0.00013698,2]
[353722346,1739998240060,-500.0,0.00013698,2]
[353722348,1739998240070,-500.0,0.00013698,2]
[353722349,1739998240080,-500.0,0.00013698,2]
[353722352,1739998240089,-500.0,0.00013698,2]
[353722354,1739998240098,-500.0,0.00013698,2]
[353722355,1739998240108,-500.0,0.00013698,2]
[353722357,1739998240118,-501.14547502,0.00013698,2]
[353722360,1739998240127,-500.0,0.00013698,2]
[353722362,1739998240137,-500.0,0.00013698,2]
[353722364,1739998240147,-500.0,0.00013698,2]
[353722366,1739998240157,-500.0,0.00013698,2]
[353722368,1739998240168,-500.0,0.00013698,2]
[353722370,1739998240177,-501.25070969,0.00013698,2]
[353722372,1739998240187,-500.0,0.00013698,2]
[353722374,1739998240197,-500.0,0.00013698,2]
[353722376,1739998240206,-500.0,0.00013698,2]
[353722378,1739998240216,-503.94424531,0.00013698,2]
[353722380,1739998240225,-500.0,0.00013698,2]
[353722390,1739998240318,-500.0,0.00013698,2]
[353722393,1739998240328,-503.11454854,0.00013698,2]
[353722394,1739998240337,-500.0,0.00013698,2]
[353722397,1739998240347,-500.0,0.00013698,2]
[353722398,1739998240357,-500.0,0.00013698,2]
[353722400,1739998240366,-500.0,0.00013698,2]
[353722402,1739998240376,-500.0,0.00013698,2]
[353722404,1739998240386,-500.0,0.00013698,2]
[353722407,1739998240397,-500.0,0.00013698,2]
[353722409,1739998240413,-550.53621587,0.00013698,2]
[353722412,1739998240428,-501.42846655,0.00013698,2]
[353722414,1739998240439,-500.0,0.00013698,2]
[353722416,1739998240451,-500.0,0.00013698,2]
[353722419,1739998240461,-500.0,0.00013698,2]
[353722422,1739998240469,-500.0,0.00013698,2]
[353722424,1739998240478,-500.0,0.00013698,2]
[353722426,1739998240487,-500.88623727,0.00013698,2]
[353722428,1739998240497,-503.88816761,0.00013698,2]
[353722431,1739998240507,-500.0,0.00013698,2]
[353722433,1739998240517,-500.0,0.00013698,2]
[353722435,1739998240526,-500.0,0.00013698,2]
[353722437,1739998240536,-735.72,0.00013698,2]
[353722439,1739998240547,-500.0,0.00013698,2]
[353722441,1739998240555,-401.42485338,0.00013698,2]
[353722443,1739998240565,-500.0,0.00013698,2]
[353722445,1739998240574,-500.0,0.00013698,2]
[353722447,1739998240583,-500.0,0.00013698,2]
[353722449,1739998240593,-500.0,0.00013698,2]
[353722451,1739998240603,-500.0,0.00013698,2]
[353722453,1739998240614,-500.0,0.00013698,2]
[353722455,1739998240624,-500.0,0.00013698,2]
[353722458,1739998240634,-500.0,0.00013698,2]
[353722459,1739998240644,-500.0,0.00013698,2]
[353722462,1739998240654,-500.0,0.00013698,2]
[353722464,1739998240663,-503.31,0.00013698,2]
[353722466,1739998240673,-613.45859779,0.00013698,2]
[353722467,1739998240684,-500.0,0.00013698,2]
[353722468,1739998240695,-500.0,0.00013698,2]
[353722469,1739998240705,-525.93626477,0.00013698,2]
[353722470,1739998240715,-508.77565094,0.00013698,2]
[353722472,1739998240725,-500.0,0.00013698,2]
[353722474,1739998240736,-500.0,0.00013698,2]
[353722476,1739998240745,-500.0,0.00013698,2]
[353722478,1739998240755,-500.0,0.00013698,2]
[353722480,1739998240765,-502.29165909,0.00013698,2]
[353722482,1739998240775,-500.95868189,0.00013698,2]
[353722484,1739998240785,-500.0,0.00013698,2]
[353722486,1739998240795,-500.0,0.00013698,2]
[353722488,1739998240806,-500.0,0.00013698,2]
[353722490,1739998240816,-500.0,0.00013698,2]
[353722492,1739998240826,-501.84426566,0.00013698,2]
[353722494,1739998240836,-500.0,0.00013698,2]
[353722496,1739998240846,-500.0,0.00013698,2]
[353722498,1739998240856,-500.0,0.00013698,2]
[353722500,1739998240866,-502.08902663,0.00013698,2]
[353722502,1739998240880,-500.0,0.00013698,2]
[353722504,1739998240890,-500.0,0.00013698,2]
[353722506,1739998240901,-500.0,0.00013698,2]
[353722509,1739998240911,-500.0,0.00013698,2]
[353722511,1739998240923,-500.0,0.00013698,2]
[353722513,1739998240934,-500.0,0.00013698,2]
[353722515,1739998240945,-500.0,0.00013698,2]
[353722517,1739998240957,-500.0,0.00013698,2]
[353722519,1739998240968,-500.0,0.00013698,2]
[353722521,1739998240979,-500.0,0.00013698,2]
[353722524,1739998240988,-500.0,0.00013698,2]
[353722526,1739998240998,-500.0,0.00013698,2]
[353722528,1739998241008,-500.0,0.00013698,2]
[353722530,1739998241018,-500.0,0.00013698,2]
[353722532,1739998241027,-500.0,0.00013698,2]
[353722534,1739998241036,-500.0,0.00013698,2]
[353722536,1739998241046,-173.31373718,0.00013698,2]
[353722538,1739998241057,-500.31375197,0.00013698,2]
[353722540,1739998241066,-532.29,0.00013698,2]
[353722542,1739998241076,-486.04298963,0.00013698,2]
[353722544,1739998241086,-500.0,0.00013698,2]
[353722546,1739998241095,-500.0,0.00013698,2]
[353722548,1739998241106,-500.0,0.00013698,2]
[353722550,1739998241116,-500.0,0.00013698,2]
[353722552,1739998241126,-500.0,0.00013698,2]
[353722554,1739998241136,-584.31090241,0.00013698,2]
[353722556,1739998241146,-510.40263735,0.00013698,2]
[353722558,1739998241156,-500.0,0.00013698,2]
[353722560,1739998241165,-500.0,0.00013698,2]
[353722562,1739998241175,-500.0,0.00013698,2]
[353722564,1739998241185,-500.0,0.00013698,2]
[353722566,1739998241195,-500.0,0.00013698,2]
[353722568,1739998241205,-500.0,0.00013698,2]
[353722570,1739998241215,-770.11,0.00013698,2]
[353722572,1739998241225,-500.0,0.00013698,2]
[353722574,1739998241235,-302.68412099,0.00013698,2]
[353722576,1739998241245,-500.0,0.00013698,2]
[353722578,1739998241255,-500.0,0.00013698,2]
[353722581,1739998241265,-500.0,0.00013698,2]
[353722582,1739998241274,-500.0,0.00013698,2]
[353722584,1739998241284,-1000.0,0.00013698,2]
[353722587,1739998241293,-500.0,0.00013698,2]
[353722589,1739998241303,-500.0,0.00013698,2]
[353722591,1739998241313,-500.0,0.00013698,2]
[353722593,1739998241322,-500.0,0.00013698,2]
[353722595,1739998241332,-520.935007,0.00013698,2]
[353722597,1739998241342,-500.0,0.00013698,2]
[353722599,1739998241351,-500.0,0.00013698,2]
[353722601,1739998241362,-500.0,0.00013698,2]